Cogmind - Beta 13 @@@ ROGUE MODE // 2024.04.26 @ 11:49:33 Player: SovietPaperclip Result: Self-destructed Performance ------------- Evolutions (3) 1500 Regions Visited (8) 1600 Robots Destroyed (173) 865 Value Destroyed (4904) 4904 Prototype IDs (10) 200 Alien Tech Used (0) 0 Bonus (965) 965 TOTAL SCORE: 10034 Bonus ------- High Alert Combat Kills 965 Cogmind --------- Core Integrity 263/700 Matter 281/300 Energy 290/290 System Corruption 3% Temperature Cool (0) Movement Rolling (160) Ox4 Location -7/Storage Parts ------- > --- POWER (1) -------- Improved Deuterium Engine > --- PROPULSION (5) --- Medium Treads Armored Huge Wheel Armored Huge Wheel > --- UTILITY (4) ------ Humpback Improved Medium Armor Plating Improved Medium Armor Plating > --- WEAPON (3) ------- Enhanced Autogun Flak Gun > --- INVENTORY (35) --- Improved Deuterium Engine Improved Deuterium Engine Cooled VTOL Module Cooled VTOL Module Cooled VTOL Module Improved Cooling System Improved Cooling System Coolant Injector Large Matter Pod (69) Experimental Sensor Array Improved Signal Interpreter Improved Terrain Scanner Advanced Terrain Scan Processor Advanced Targeting Computer Core Analyzer Core Analyzer Weapon Cycler Transmission Jammer Hardened Heavy Armor Plating Hardened Heavy Armor Plating Improved Medium Armor Plating Improved Medium Armor Plating Improved Shield Generator System Shield Long-range Tractor Beam Mini Assault Cannon Proton Missile Launcher Heavy Rocket Launcher Powered Hammer Peak State ------------ > --- POWER ------------ Improved Deuterium Engine > --- PROPULSION ------- Armored Huge Wheel Armored Huge Wheel Cooled VTOL Module > --- UTILITY ---------- Improved Cooling System Humpback Hardened Medium Armor Plating > --- WEAPON ----------- Enhanced Autogun Enhanced Autogun Flak Gun > --- INVENTORY -------- Nuclear Core Light Treads Light Treads Xenon Bombardment Thruster Cooled VTOL Module Cooled VTOL Module Improved Cooling System Coolant Injector Large Matter Pod Experimental Sensor Array Improved Terrain Scanner Advanced Terrain Scan Processor Weapon Cycler Transmission Jammer Hardened Medium Armor Plating Hardened Medium Armor Plating Hardened Heavy Armor Plating Hardened Heavy Armor Plating System Shield Long-range Tractor Beam Mini Assault Cannon Heavy Rocket Launcher Powered Hammer [Rating: 55] Favorites ----------- Power Heavy Ion Engine Engine Heavy Ion Engine Power Core Nuclear Core Propulsion Armored Treads Treads Armored Treads Wheel Armored Huge Wheel Hover Unit Aerolev Unit Flight Unit Cooled VTOL Module Utility Salvage Targeting Computer Device Improved Cooling System Storage High-capacity Storage Unit Processor Salvage Targeting Computer Hackware Hacking Suite Protection Improved Light Armor Plating Weapon Improved Assault Rifle Energy Gun Small Laser Energy Cannon EM Pulse Cannon Ballistic Gun Improved Assault Rifle Ballistic Cannon Light Cannon Launcher Rocket Launcher Build | -11 -10 -9 -9 -9 -8 -8 -7 -7 ------- Run | Yrd Mat Mat Min Exi Min Mat Fac Sto Slots Evolved 6 | . . 2 . . . 2 2 . Power . | . . . . . . . . . Propulsion 3 | . . 1 . . . 1 1 . Utility 2 | . . 1 . . . 1 . . Weapon 1 | . . . . . . . 1 . Parts Attached 131 | 6 3 17 10 1 3 27 63 1 Power 14 | 1 . 3 . . 2 5 3 . Engine 9 | 1 . 3 . . . 3 2 . Core 5 | . . . . . 2 2 1 . Reactor . | . . . . . . . . . Propulsion 29 | 2 . 8 . . 1 6 11 1 Treads 19 | 2 . 7 . . 1 5 3 1 Leg . | . . . . . . . . . Wheel 7 | . . . . . . . 7 . Hover 1 | . . . . . . 1 . . Flight 2 | . . 1 . . . . 1 . Utility 48 | 1 2 2 2 1 . 6 34 . Device 13 | . . 1 . . . 1 11 . Storage 4 | 1 1 . . 1 . . 1 . Processor 3 | . 1 . . . . 1 1 . Hackware 5 | . . . . . . . 5 . Protection 23 | . . 1 2 . . 4 16 . Artifact . | . . . . . . . . . Weapon 40 | 2 1 4 8 . . 10 15 . Energy Gun 1 | 1 . . . . . . . . Energy Cannon 3 | . . . . . . . 3 . Ballistic Gun 21 | 1 1 2 4 . . 6 7 . Ballistic Cannon 3 | . . 2 . . . . 1 . Launcher 12 | . . . 4 . . 4 4 . Special Weapon . | . . . . . . . . . Impact Weapon . | . . . . . . . . . Slashing Weapon . | . . . . . . . . . Piercing Weapon . | . . . . . . . . . Special Melee Weapon . | . . . . . . . . . Unidentified Prototypes 9 | . . 3 . . . 2 4 . Parts Lost 20 | . . 5 . . . 2 13 . Power 1 | . . 1 . . . . . . Propulsion 10 | . . 2 . . . 1 7 . Utility 1 | . . . . . . . 1 . Weapon 8 | . . 2 . . . 1 5 . Highest Loss Streak 4 | . . 4 . . . 1 2 . To Critical Strikes 1 | . . 1 . . . . . . Average Slot Usage (%) 91 | . 90 92 100 100 99 99 80 69 Engine 7 | . 14 10 11 11 7 7 5 7 Core 1 | . . . . . 3 1 1 . Treads 26 | . 28 29 33 33 32 35 14 7 Wheel 3 | . . . . . . . 9 15 Device 1 | . . . . . . . 4 . Storage 9 | . 14 11 11 11 11 9 7 7 Processor 8 | . 5 11 11 11 11 12 4 . Protection 9 | . . 8 11 11 11 13 8 15 Ballistic Gun 18 | . 23 20 10 22 22 17 18 15 Launcher 1 | . . . 11 . . . . . Naked Turns . | . . . . . . . . . Heaviest Build 240 | 13 28 39 43 61 61 62 240 231 Greatest Support 108 | 40 40 60 60 60 60 80 108 56 Greatest Overweight (x) 25 | . . . . 1 1 1 25 4 Average Overweight (x) . | . . . . . . . 1 4 Largest Inventory Capacity 35 | 8 15 15 15 20 20 20 35 35 Average Capacity 19 | 6 14 15 15 16 20 20 22 35 Most Carried 32 | 1 5 15 15 18 20 20 32 31 Average Carried 17 | . 2 12 14 15 18 19 20 31 Final Capacity 35 | 8 15 15 15 20 20 20 35 35 Final Carried 32 | 1 5 15 15 18 20 20 32 31 Class Distribution -------------------- 76% | Mutant 10% | Tank 6% | Hauler-Tank 4% | Scavenger-Mutant Dominant Class ---------------- Mutant | -10/Materials Mutant | -9/Materials Mutant | -9/Mines Mutant | -9/Exiles Mutant | -8/Mines Mutant | -8/Materials Mutant | -7/Factory Hauler-Mutant | -7/Storage Resources | -11 -10 -9 -9 -9 -8 -8 -7 -7 ----------- Run | Yrd Mat Mat Min Exi Min Mat Fac Sto Matter Collected 5891 | 242 171 585 442 . 294 1217 2940 . Remotely 790 | . . . . . . . 790 . Salvage Created 6779 | . 253 1172 324 . 393 1786 2851 . Parts 382 | . 16 65 26 . 28 102 145 . Haulers Intercepted 13 | . 1 3 . . . 5 4 . Recyclers Shooed 8 | . 3 3 . . . . 2 . Parts Field Recycled . | . . . . . . . . . Retrieved Matter . | . . . . . . . . . Parts Self-Destructed . | . . . . . . . . . Prevented . | . . . . . . . . . Kills | -11 -10 -9 -9 -9 -8 -8 -7 -7 ------- Run | Yrd Mat Mat Min Exi Min Mat Fac Sto Combat Hostiles Destroyed 135 | . 6 19 18 . 13 28 51 . Guns 105 | . 6 17 7 . 13 21 41 . Cannons 3 | . . 2 . . . . 1 . AOE 26 | . . . 11 . . 7 8 . Classes Destroyed 16 | . 4 5 2 . 2 1 2 . Worker 12 | . . 1 2 . . 3 6 . Builder 9 | . . . 1 . . 4 4 . Tunneler 1 | . . . . . . 1 . . Hauler 13 | . 1 3 . . . 5 4 . Recycler 8 | . . 3 1 . . 1 3 . Operator 4 | . 1 . . . . 2 1 . Watcher 10 | . . 3 . . . 4 3 . Swarmer 31 | . 3 7 7 . 9 3 2 . Grunt 66 | . 3 8 3 . 2 16 34 . Brawler 2 | . . 1 . . . . 1 . Duelist 4 | . . . . . 1 1 2 . Protector 1 | . . . . . . . 1 . Sentry 15 | . . 3 . . . 6 6 . Hunter 4 | . . . . . 1 2 1 . Programmer 4 | . . . . . . . 4 . Assembled 8 | . . . 8 . . . . . Best Kill Streak 10 | . 2 5 4 . 4 7 10 . Combat Bots Only 7 | . 2 4 4 . 4 5 7 . Max Kills in Single Turn 3 | . 1 2 2 . 2 2 3 . Gunslinging 1 | . . 1 . . 1 . 1 . Exploded 2 | . . . 2 . . 2 2 . Melee . | . . . . . . . . . Uniques/NPCs Destroyed . | . . . . . . . . . Combat | -11 -10 -9 -9 -9 -8 -8 -7 -7 -------- Run | Yrd Mat Mat Min Exi Min Mat Fac Sto Hostile Shots Fired 896 | . 41 99 28 . 82 161 476 9 Missed 273 | . 5 37 8 . 24 46 152 1 Damage Taken 7505 | . 395 646 228 . 616 1744 3821 55 Core 919 | . 84 145 42 . 125 86 425 12 Absorbed by Shields . | . . . . . . . . . Core Remaining (%) 68 | 100 66 . . . 22 84 . . Volleys Fired 502 | . 39 78 23 . 44 129 188 1 Largest 3 | . 2 2 2 . 2 2 3 2 Hottest 114 | . 60 58 66 . 46 62 114 53 Shots Fired 1090 | . 78 142 36 . 88 254 490 2 Gun 1033 | . 78 134 19 . 88 241 471 2 Cannon 15 | . . 8 . . . . 7 . Launcher 42 | . . . 17 . . 13 12 . Special . | . . . . . . . . . Kinetic 1029 | . 66 142 19 . 88 241 471 2 Thermal 12 | . 12 . . . . . . . Explosive 42 | . . . 17 . . 13 12 . Electromagnetic 7 | . . . . . . . 7 . Robot Hit Streak 23 | . 7 12 6 . 8 16 23 1 Robot Miss Streak 10 | . 6 3 3 . 4 4 10 8 Penetration Max 1 | . . . . . . 1 . . Secondary Targets 10 | . . 4 1 . 1 . 4 . Max Gunslinging Chain 1 | . . 1 1 . 1 . 1 . Shots Hit Robots 688 | . 42 97 13 . 58 165 312 1 Core Hits 397 | . 20 42 30 . 19 86 199 1 Critical Kills 4 | . . 1 . . 1 1 1 . Critical Parts Destroyed 9 | . 1 . . . 1 1 6 . Critical Strikes 15 | . 1 2 . . 2 2 8 . Destroy 14 | . 1 2 . . 2 2 7 . Corrupt 1 | . . . . . . . 1 . Melee Attacks . | . . . . . . . . . Impact . | . . . . . . . . . Slashing . | . . . . . . . . . Piercing . | . . . . . . . . . Sneak Attacks . | . . . . . . . . . Combat Hostiles . | . . . . . . . . . Follow-up Attacks . | . . . . . . . . . Damage Inflicted 14176 | . 443 1434 911 . 799 3830 6754 5 Guns 10694 | . 443 1317 173 . 799 2575 5382 5 Cannons 270 | . . 117 . . . . 153 . Explosions 3212 | . . . 738 . . 1255 1219 . Melee . | . . . . . . . . . Ramming . | . . . . . . . . . Kinetic 10756 | . 388 1434 173 . 799 2575 5382 5 Thermal 208 | . 55 . . . . . 153 . Explosive 3059 | . . . 738 . . 1255 1066 . Electromagnetic 153 | . . . . . . . 153 . Impact . | . . . . . . . . . Slashing . | . . . . . . . . . Piercing . | . . . . . . . . . Highest Corruption 3 | . . . . . . . 3 3 Average Corruption 2 | . . . . . . . 2 3 Corruption Purged . | . . . . . . . . . Corruption Blocked . | . . . . . . . . . Effects 35 | . . . . . . . 35 . Message Errors 6 | . . . . . . . 6 . Matter Fused 11 | . . . . . . . 11 . Heat Flow Errors 5 | . . . . . . . 5 . Energy Discharges 6 | . . . . . . . 6 . Data Loss (minor) 3 | . . . . . . . 3 . Data Loss (major) 2 | . . . . . . . 2 . Misfires 1 | . . . . . . . 1 . Weapon Failures 1 | . . . . . . . 1 . Overload Shots . | . . . . . . . . . Overflow Damage 66 | . . 7 8 . . 3 48 . Projectiles 7 | . . 7 . . . . . . Explosions 59 | . . . 8 . . 3 48 . Melee . | . . . . . . . . . Knockbacks 1 | . . 1 . . . . . . Impact . | . . . . . . . . . Kinetic 1 | . . 1 . . . . . . Secondary . | . . . . . . . . . Self-Inflicted Damage 277 | . . . 65 . . 16 196 . Shots 6 | . . . 2 . . 1 3 . Rammed . | . . . . . . . . . Targets Rammed . | . . . . . . . . . Kicked . | . . . . . . . . . Crushed . | . . . . . . . . . Highest Temperature 355 | . 48 16 33 . 21 75 355 6 Average Temperature 57 | . 22 6 12 . 12 17 88 4 Received Heat Transfer 2244 | . 189 171 6 . 54 621 1191 12 Effects 3 | . . . . . . . 3 . Energy Bleed 1 | . . . . . . . 1 . Matter Decay 1 | . . . . . . . 1 . Damage (minor) 1 | . . . . . . . 1 . Siege Activations . | . . . . . . . . . Robots Corrupted 1 | . . . . . . . 1 . Combat Hostiles 1 | . . . . . . . 1 . Parts Fried 1 | . . . . . . . 1 . Impact Corruptions . | . . . . . . . . . Robots Melted . | . . . . . . . . . Combat Hostiles . | . . . . . . . . . Parts Melted . | . . . . . . . . . Heat Transferred 275 | . 125 . . . . . 150 . Parts Sabotaged . | . . . . . . . . . Parts Stolen . | . . . . . . . . . Parts Stripped . | . . . . . . . . . Power Chain Reactions 1 | . . . . . . . 1 . Alert | -11 -10 -9 -9 -9 -8 -8 -7 -7 ------- Run | Yrd Mat Mat Min Exi Min Mat Fac Sto Peak Influence 1313 | . 224 309 243 . 315 609 1313 624 Initial 592 | . . 26 82 . . 84 256 592 Average 347 | . 103 165 128 . 183 404 544 604 Maximum Alert Level 4 | . 1 1 1 . 1 2 4 2 Low Security (%) 39 | 100 99 63 75 . 69 11 17 . Level 1 27 | . . 36 24 . 30 25 31 . Level 2 21 | . . . . . . 62 19 100 Level 3 5 | . . . . . . . 14 . Level 4 6 | . . . . . . . 17 . Level 5 . | . . . . . . . . . High Security . | . . . . . . . . . Max Security . | . . . . . . . . . Squads Dispatched 27 | . 2 3 . . . 3 19 . Investigation 9 | . 2 2 . . . 1 4 . Extermination 4 | . . . . . . . 4 . Reinforcement 8 | . . 1 . . . 2 5 . Assault 1 | . . . . . . . 1 . Garrison 5 | . . . . . . . 5 . Intercept . | . . . . . . . . . Searches Triggered . | . . . . . . . . . Construction Impeded . | . . . . . . . . . Haulers Reinforced 2 | . . . . . . . 2 . Active Scanning Responses . | . . . . . . . . . Cargo Convoy Interrupts . | . . . . . . . . . Stealth | -11 -10 -9 -9 -9 -8 -8 -7 -7 --------- Run | Yrd Mat Mat Min Exi Min Mat Fac Sto Distress Signals 6 | . 2 . . . . 3 1 . Communications Jammed 3 | . . . . . . . 3 . Distress Signals 3 | . . . . . . . 3 . Times Spotted 198 | . 16 29 15 . 19 44 71 4 Peak Tracking Total 7 | . 4 4 4 . 7 5 5 3 Tactical Retreats 8 | . 1 1 . . 1 1 4 . Traps | -11 -10 -9 -9 -9 -8 -8 -7 -7 ------- Run | Yrd Mat Mat Min Exi Min Mat Fac Sto Traps Triggered 5 | . 1 1 . . . . 3 . Indirectly . | . . . . . . . . . Trap Hack Attempts . | . . . . . . . . . Triggered . | . . . . . . . . . Disarmed 4 | . 4 . . . . . . . Reprogrammed . | . . . . . . . . . Reused . | . . . . . . . . . Traps Extracted . | . . . . . . . . . Installed . | . . . . . . . . . Triggered . | . . . . . . . . . Machines | -11 -10 -9 -9 -9 -8 -8 -7 -7 ---------- Run | Yrd Mat Mat Min Exi Min Mat Fac Sto Machines Disabled 17 | . . 2 2 . 1 5 7 . Max in Single Turn 3 | . . 1 1 . 1 1 3 . Garrison Access 1 | . . . . . . . 1 . Machines Repaired . | . . . . . . . . . Machines Dismantled . | . . . . . . . . . Machines Sabotaged . | . . . . . . . . . Overloaded Fab Kills . | . . . . . . . . . Hacking | -11 -10 -9 -9 -9 -8 -8 -7 -7 --------- Run | Yrd Mat Mat Min Exi Min Mat Fac Sto Machines Accessed 29 | . 4 5 . 1 1 8 9 1 Terminals 20 | . 4 4 . . 1 5 5 1 Fabricators 1 | . . . . . . . 1 . Repair Stations . | . . . . . . . . . Recycling Units . | . . . . . . . . . Scanalyzers 4 | . . 1 . . . 2 1 . Garrison Access 3 | . . . . . . 1 2 . Total Hacks 74 | . 11 16 . 1 1 21 23 1 Successful 37 | . 4 10 . 1 1 12 8 1 Failed 37 | . 7 6 . . . 9 15 . Catastrophic 8 | . 2 1 . . . 1 4 . Database Lockouts . | . . . . . . . . . Manual 21 | . 7 5 . . . 4 5 . Terminals 55 | . 11 12 . . 1 14 16 1 Fabricators 2 | . . . . . . . 2 . Repair Stations . | . . . . . . . . . Recycling Units . | . . . . . . . . . Scanalyzers 10 | . . 4 . . . 4 2 . Garrison Access 6 | . . . . . . 3 3 . Terminal Hacks 21 | . 4 5 . 1 1 6 3 1 Record 3 | . . 1 . 1 1 . . . Part Schematic 6 | . 2 1 . . . 1 2 . Open Door 1 | . . . . . . . . 1 Level Access Points 1 | . . . . . . 1 . . Branch Access Points 1 | . . . . . . 1 . . Alert Level 2 | . . 2 . . . . . . Unreport Threat 3 | . . 1 . . . 1 1 . Disarm Traps 1 | . 1 . . . . . . . Zone Layout 3 | . 1 . . . . 2 . . Fabricator Hacks 2 | . . . . . . . 2 . Load Schematic 1 | . . . . . . . 1 . Build 1 | . . . . . . . 1 . Repair Station Hacks . | . . . . . . . . . Recycling Unit Hacks . | . . . . . . . . . Scanalyzer 10 | . . 4 . . . 4 2 . Insert Component 5 | . . 2 . . . 2 1 . Analyze 5 | . . 2 . . . 2 1 . Garrison Access Hacks 1 | . . . . . . . 1 . Seal Access 1 | . . . . . . . 1 . Unauthorized Hacks 3 | . . 1 . . . 2 . . Terminals 3 | . . 1 . . . 2 . . Botnet 3 | . . 1 . . . 2 . . Fabricators . | . . . . . . . . . Repair Stations . | . . . . . . . . . Recycling Units . | . . . . . . . . . Scanalyzers . | . . . . . . . . . Garrison Access . | . . . . . . . . . Data Cores Recovered 1 | . 1 . . . . . . . Used 1 | . 1 . . . . . . . Hacking Detections 22 | . 4 4 . . 1 6 7 . Full Trace Events 6 | . 1 1 . . . 1 3 . Feedback Events . | . . . . . . . . . Feedback Blocked . | . . . . . . . . . Robot Schematics Acquired . | . . . . . . . . . Robots Built . | . . . . . . . . . Authchips . | . . . . . . . . . Time . | . . . . . . . . . Total Robot Build Rating . | . . . . . . . . . Part Schematics Acquired 11 | . 2 3 . . . 3 3 . Parts Built 2 | . . . . . . . 2 . Authchips . | . . . . . . . . . Time 42 | . . . . . . . 42 . Total Part Build Rating 8 | . . . . . . . 8 . Parts Repaired . | . . . . . . . . . Time . | . . . . . . . . . Parts Recycled . | . . . . . . . . . Recycled Matter . | . . . . . . . . . Retrieved Matter . | . . . . . . . . . Retrieved Components . | . . . . . . . . . Parts Scanalyzed 5 | . . 2 . . . 2 1 . Part Schematics Acquired 5 | . . 2 . . . 2 1 . Parts Damaged 1 | . . 1 . . . . . . Bothacking | -11 -10 -9 -9 -9 -8 -8 -7 -7 ------------ Run | Yrd Mat Mat Min Exi Min Mat Fac Sto Used RIF Installer . | . . . . . . . . . Robots Hacked . | . . . . . . . . . Non-combat . | . . . . . . . . . Combat . | . . . . . . . . . Robot Hacks Applied . | . . . . . . . . . Relay Couplers Released . | . . . . . . . . . Fabnet Peak Effective % . | . . . . . . . . . Robots Rewired . | . . . . . . . . . Allies Hacked . | . . . . . . . . . Hacks Repelled . | . . . . . . . . . Allies | -11 -10 -9 -9 -9 -8 -8 -7 -7 -------- Run | Yrd Mat Mat Min Exi Min Mat Fac Sto Total Allies . | . . . . . . . . . Largest Group . | . . . . . . . . . Highest-Rated Group . | . . . . . . . . . Highest-Rated Ally . | . . . . . . . . . Total Orders . | . . . . . . . . . Ally Attacks . | . . . . . . . . . Total Damage . | . . . . . . . . . Kills . | . . . . . . . . . Allies Corrupted . | . . . . . . . . . Allies Melted . | . . . . . . . . . Intel | -11 -10 -9 -9 -9 -8 -8 -7 -7 ------- Run | Yrd Mat Mat Min Exi Min Mat Fac Sto Robot Analysis Total . | . . . . . . . . . Derelict Logs Recovered 2 | . . . 2 . . . . . Drone Launches . | . . . . . . . . . Drone Recoveries . | . . . . . . . . . Exploration | -11 -10 -9 -9 -9 -8 -8 -7 -7 ------------- Run | Yrd Mat Mat Min Exi Min Mat Fac Sto Turns Passed 9249 | 67 482 1423 1177 356 566 1978 3146 54 Spaces Moved 4473 | 38 212 676 646 194 192 902 1582 31 Core 3 | 2 . . . . . . 1 . Treads 3436 | 36 212 676 646 194 192 902 578 . Legs . | . . . . . . . . . Wheels 1034 | . . . . . . . 1003 31 Hover . | . . . . . . . . . Flight . | . . . . . . . . . Fastest Speed 50 | 50 160 160 170 170 170 165 93 160 Average Speed 163 | 154 160 163 170 182 222 167 149 160 Slowest Speed 1300 | 160 160 170 170 250 250 246 1300 160 Overloaded Moves . | . . . . . . . . . Propulsion Burnouts . | . . . . . . . . . Robots Hopped . | . . . . . . . . . Cave-ins Triggered . | . . . . . . . . . Exploration Rate (%) 50 | 3 54 54 98 53 59 77 41 13 Regions Visited 8 Branch Regions 4 Pre-discovered Areas 1 | . . . . 1 . . . . Known Exits Taken 1 | . . . . . . 1 . . Unknown Exits Taken 7 | 1 1 1 1 1 1 . 1 . Scrap Searched 4 | . . . 3 . 1 . . . Spaces Dug 13 | . . . 13 . . . . . Terrain Destroyed 443 | . . . 156 . . 109 178 . Melee . | . . . . . . . . . Projectile 1 | . . . . . . 1 . . AOE 442 | . . . 156 . . 108 178 . Terrain Rammed . | . . . . . . . . . Walls Destroyed . | . . . . . . . . . Machines Disabled . | . . . . . . . . . Actions | -11 -10 -9 -9 -9 -8 -8 -7 -7 --------- Run | Yrd Mat Mat Min Exi Min Mat Fac Sto Total 5536 | 44 282 855 687 197 243 1124 2071 33 Wait 234 | . 23 39 . . 3 18 151 . Move 4465 | 37 211 675 645 193 191 901 1581 31 Hop . | . . . . . . . . . Pick Up 102 | 1 4 27 4 2 1 21 42 . Fast Attach 40 | 6 3 8 1 . 2 4 16 . Attach 39 | . . 4 1 . . 8 25 1 Detach 9 | . . 1 . . . 1 7 . Swap 52 | . . 5 8 1 1 15 22 . Drop 93 | . 2 18 5 1 1 27 39 . Fire 502 | . 39 78 23 . 44 129 188 1 Melee . | . . . . . . . . . Ram . | . . . . . . . . . Kick . | . . . . . . . . . Crush . | . . . . . . . . . Escape Stasis . | . . . . . . . . . Rewire . | . . . . . . . . . Trap . | . . . . . . . . . Miscellaneous . | . . . . . . . . . Route ------- -11/Scrapyard -10/Materials (discovered 2 exits: *Mat / [*Min]) -9/Materials (discovered 2 exits: *Mat / [*Min]) -9/Mines (discovered 3 exits: *Mat x2 / *Exi) -9/Exiles -8/Mines -8/Materials (discovered 3 exits: *Fac x3) -7/Factory (discovered 2 exits: *Fac / *Sto) -7/Storage History --------- Turn | Location | Event 13 | -11/Scrapyard | Discovered new exit (range 15) 68 | -11/Scrapyard | Entered Materials 236 | -10/Materials | Discovered new exit (range 14) 318 | -10/Materials | Build established: Mutant 518 | -10/Materials | Discovered new exit (range 16) 550 | -10/Materials | Entered another Materials area 550 | -9/Materials | Evolved 2 slots: Propulsion x1, Utility x1 679 | -9/Materials | Lost 4 parts (1p1n2w) 1145 | -9/Materials | Discovered new exit (range 13) 1463 | -9/Materials | Discovered new exit (range 16) 1973 | -9/Materials | Entered Mines 2036 | -9/Mines | Learned Materials trap positions 2049 | -9/Mines | Assembled infested the area 2417 | -9/Mines | Found a hidden stash of uninstalled traps 2480 | -9/Mines | Discovered new exit (range 10) 2494 | -9/Mines | Learned Materials terminal intel 2577 | -9/Mines | Discovered new exit (range 9) 2580 | -9/Mines | Received a Rocket Launcher from a helpful Derelict 2687 | -9/Mines | Found a damaged Exp. Sensor Array with a note attached 2691 | -9/Mines | Found Prototype Device 3141 | -9/Mines | Deemed a non-threat by the Exiles lab entrance 3143 | -9/Mines | Discovered new exit (range 5) 3150 | -9/Mines | Entered Exiles 3190 | -9/Exiles | Met 8R-AWN 3222 | -9/Exiles | Met EX-HEX 3317 | -9/Exiles | Met EX-DEC 3370 | -9/Exiles | Learned location of Zion (-6) 3476 | -9/Exiles | Discovered new exit (range 14) 3506 | -9/Exiles | Entered Mines 3760 | -8/Mines | Core integrity fell below 50% 4062 | -8/Mines | Discovered new exit (range 5) 4072 | -8/Mines | Entered Materials 4072 | -8/Materials | Evolved 2 slots: Propulsion x1, Utility x1 4073 | -8/Materials | Loaded intel: 12 trap records 4074 | -8/Materials | Loaded intel: 11 terminal locations 4079 | -8/Materials | Identified Exp. Sensor Array 4158 | -8/Materials | Identified exit to Factory 5763 | -8/Materials | Build established: Scavenger-Mutant 6050 | -8/Materials | Entered Factory 6050 | -7/Factory | Evolved 2 slots: Propulsion x1, Weapon x1 6210 | -7/Factory | Build established: Mutant 6867 | -7/Factory | Discovered new exit (range 8) 6891 | -7/Factory | Identified exit to Factory 7542 | -7/Factory | Fabricated Arm. Huge Wheel? 7915 | -7/Factory | Build established: Tank 8005 | -7/Factory | Destroyed 7 combat bots 8337 | -7/Factory | Garrison activated, responded to threat 8576 | -7/Factory | Garrison activated, responded to threat 8757 | -7/Factory | Garrison activated, responded to threat 8850 | -7/Factory | First assault squad dispatched 9060 | -7/Factory | Build established: Hauler-Tank 9095 | -7/Factory | Core integrity fell below 50% 9174 | -7/Factory | Discovered new exit (range 6) 9196 | -7/Factory | Entered Storage 9250 | -7/Storage | Self-destructed Last Messages --------------- 09153_ System corrupted: Matter fused (-5). 09174_ EXIT=FOUND 09174_ O-24 Administrator: "IFF HANDSHAKE FAILED. SECURING TERMINAL." 09178_ O-24 Administrator uses terminal to summon reinforcements. 09178_ ALERT: Hostiles spotted, dispatching reinforcements to Terminal F001. 09178_ O-24 Administrator locks terminal. 09181_ Penetrated by Slug. 09189_ Enh. Autogun destroyed. 09190_ Penetrated by Slug. 09195_ Acquired Med. Treads. LOCATION=UNKNOWN GOAL=ESCAPE 09205_ Connecting with Door Terminal... 09205_ Current location identified: Storage >>Open(Door) Sealed Heavy Doors opened. [Achievement: Overachiever] Map ----- +----------------------------------------------------+ | | | | | | | | | ???????????????????????????????????????? | | ???????????????????????????????????????? | | ???????????????????????????????????????? | | ???????????????????????????????????????? | | ???????????????????????????????????????? | | ???????????????????????????????#####???? | | ???????????????????????????????# #???? | | ???????????????????????????????# #???? | | ????????????????????????######## #???? | | ????????????????????????#!!!!# # #???? | | ????????????????????????# # #???? | | ????????????????????????#!!!!# + #???? | | ????????????????????????######T# #???? | | ?????????????????????????????### #???? | | ???????????????????????????????# #???? | | ???????????????????????????????# #???? | | ??????????????????############## #???? | | ??????????????????#!! """T""" # #???? | | ??????????????????#!! # #???? | | ?????????????????## # #???? | | ?????????????????#Y # #???? | | ??????????????????# @ # #???? | | ???????????###############+##### #???? | | ?????????? #???? | | ?????????? #???? | | ?????????? #???? | | ????????????####+#########+##### #???? | | ???????????????????????? ??# #???? | | ???????????????????????# """ ## #???? | | ???????????????????????# """ ## #???? | | ???????????????????????# """ ## #???? | | ???????????????????????# #? #???? | | ???????????????????????# #? #???? | | ???????????????????????# #? #???? | | ??????????????????????? """ ?? #???? | | ???????????????????????# ?????? #???? | | ???????????????????????# ?????? ???? | | ???????????????????????# ??????"T ???? | | ???????????????????????# ??????????????? | | ???????????????????????????????????????? | | ???????????????????????????????????????? | | ???????????????????????????????????????? | | ???????????????????????????????????????? | | ???????????????????????????????????????? | | ???????????????????????????????????????? | | ???????????????????????????????????????? | +----------------------------------------------------+ Best States ------------- Heat Dissipation 61 Energy Generation 18 Energy Capacity 290 Matter Stores 300 Matter Capacity 300 Sight Range 16 Robot Scan Range 20 Terrain Scan Density 10 Jamming Range 12 Armor Coverage 600 Evasion (%) 41 Targeting Accuracy 8 Recoil Reduction 5 Particle Charging 15 Salvage Targeting 1 Offensive Hacking 10 Defensive Hacking 10 Item Schematics ----------------- Huge Storage Unit | -10/Materials | Hacked Cargo Storage Unit | -10/Materials | Hacked Arm. Wheel | -9/Materials | Hacked Lrn. Tractor Beam | -9/Materials | Scanalyzed Arm. Treads | -9/Materials | Scanalyzed Hvy. Armor Plating | -8/Materials | Hacked Exp. Sensor Array | -8/Materials | Scanalyzed Humpback | -8/Materials | Scanalyzed Arm. Huge Wheel | -7/Factory | Hacked Biomechanical Wings | -7/Factory | Hacked Imp. Cooling System | -7/Factory | Scanalyzed Robot Schematics ------------------ None Fabricated ------------ Arm. Huge Wheel | x2 | -7/Factory Alien Tech Used ----------------- None Achievements -------------- Overachiever Packrat Challenges ------------ None Game ------ Seed BehemothFortressTerrabomb Manual? 0 Play Time 01:11:45 Cumulative 112.0 hours Start 2024.04.26 @ 10:24:27 End 2024.04.26 @ 11:49:33 Sessions 3 Manual Loads 0 Difficulty Rogue Special Mode None Game No. 136 Rogue 136 Adventurer 0 Explorer 0 Win Type - Total 1 Types 1/0/0/0/0/0/0/0/0 Lore% 48 Gallery% 52 Achievement% 50 Wizard Run 0 Options --------- Layout 1 ASCII 0 Keyboard 0 Movement Mouse Keybinds 0 Fullscreen 2 Font 32/Smallcaps Map View 50x40 Zoom Use 0% Tactical HUD 1 Map Filters NONE Filters NONE Steam 1 RUN: 8e3f9ccd-4bd0-4bca-ae80-b6bf54890e0a